bitfinex/quotes_SOLUSD_20251212
["timestamp","ask_amount","ask_price","bid_price","bid_amount"]
[1765557241924,8.26,132.6,132.59,7.60895162]
[1765557242214,104.3,132.61,132.59,7.60895162]
[1765557242416,104.3,132.61,132.58,7.54250772]
[1765557242417,112.56,132.61,132.58,7.54250772]
[1765557242603,112.56,132.61,132.6,7.60895162]
[1765557242909,104.3,132.61,132.6,15.15042974]
[1765557243116,104.3,132.61,132.6,15.87042974]
[1765557243425,104.3,132.61,132.6,15.15042974]
[1765557243811,8.26,132.64,132.6,15.87042974]
[1765557244016,8.26,132.64,132.62,7.60895162]
[1765557244309,8.26,132.64,132.6,26.39517344]
[1765557244515,75.0,132.68,132.63,7.60895162]
[1765557244694,83.26,132.67,132.64,7.60895162]
[1765557244900,90.79792012,132.67,132.63,7.60895162]
[1765557245456,75.0,132.65,132.6,7.60895162]
[1765557245717,75.0,132.65,132.61,7.60895162]
[1765557246190,0.65,132.64,132.61,7.60895162]
[1765557246811,8.18958794,132.64,132.6,7.60895162]
[1765557247419,0.65,132.63,132.6,7.60895162]
[1765557247719,7.53958794,132.64,132.59,7.54204691]
[1765557247921,82.53877284,132.65,132.61,7.60895162]
[1765557248219,83.18877284,132.65,132.61,7.60895162]
[1765557248529,0.65,132.64,132.61,7.60895162]
[1765557248700,88.6970912,132.66,132.62,7.60895162]
[1765557248895,96.23524017,132.66,132.63,7.60895162]
[1765557249416,75.0,132.69,132.65,7.60895162]
[1765557249740,75.0,132.67,132.62,7.54016145]
[1765557249942,75.0,132.67,132.62,7.60895162]
[1765557250237,82.60895162,132.65,132.6,7.60895162]
[1765557250422,8.26,132.64,132.61,15.14974832]
[1765557250737,8.26,132.64,132.6,15.15022717]
[1765557251036,16.44925714,132.64,132.6,15.15022717]
[1765557251439,8.26,132.64,132.61,7.60895162]
[1765557251940,75.0,132.66,132.62,7.60895162]
[1765557252140,8.91,132.65,132.61,7.60895162]
[1765557252332,83.91,132.65,132.6,15.15022717]
[1765557252533,83.91,132.65,132.61,7.60895162]
[1765557252848,7.54034082,132.62,132.57,7.60895162]
[1765557253051,83.26,132.61,132.56,15.15270539]
[1765557253259,83.91,132.61,132.56,7.60895162]
[1765557253546,8.25895162,132.6,132.55,7.54412558]
[1765557253757,0.65,132.6,132.55,15.1530772]
[1765557254048,83.25895162,132.59,132.54,7.54469217]
[1765557254349,97.50703612,132.6,132.55,15.87314378]
[1765557254644,75.0,132.57,132.53,7.60895162]
[1765557254817,83.26,132.57,132.53,15.15432456]
[1765557255019,83.91,132.57,132.53,15.15432456]
[1765557255624,8.26,132.57,132.55,7.60895162]
[1765557255951,8.26,132.57,132.56,7.60895162]
[1765557256327,8.26,132.57,132.55,7.60895162]
[1765557256536,8.26,132.57,132.56,7.60895162]
[1765557257237,75.65,132.6,132.56,15.15270539]
[1765557257442,83.91,132.6,132.57,7.60895162]
[1765557257847,8.26,132.6,132.57,7.60895162]
[1765557258043,8.91,132.6,132.57,7.60895162]
[1765557258241,8.26,132.6,132.56,26.40313819]
[1765557258446,96.85703612,132.63,132.59,7.60895162]
[1765557258756,90.79928723,132.64,132.61,7.60895162]
[1765557259250,75.0,132.62,132.52,8.44]
[1765557259459,83.80994492,132.61,132.57,7.60895162]
[1765557259639,8.26,132.6,132.58,7.60895162]
[1765557259956,8.26,132.6,132.55,19.57989695]
[1765557259957,8.26,132.6,132.59,7.60895162]
[1765557260655,0.71,132.67,132.59,34.7061158]
[1765557260831,8.26,132.67,132.65,7.60895162]
[1765557261034,8.26,132.67,132.66,7.60895162]
[1765557261234,8.26,132.67,132.65,7.53831178]
[1765557261465,75.0,132.71,132.66,15.84701885]
[1765557261636,8.26,132.7,132.68,7.60895162]
[1765557261835,8.26,132.7,132.67,7.60895162]
[1765557262154,8.97,132.7,132.67,7.60895162]
[1765557262324,75.71,132.69,132.62,18.85059433]
[1765557262654,75.0,132.66,132.61,7.54074092]
[1765557262956,92.06994492,132.65,132.61,7.60895162]
[1765557263131,100.28868471,132.65,132.61,7.60895162]
[1765557263450,0.68,132.64,132.61,7.60843373]
[1765557263925,8.26,132.65,132.62,7.60843373]
[1765557264281,8.26,132.65,132.64,7.60843373]
[1765557264481,8.26,132.65,132.63,7.60843373]
[1765557264794,8.94,132.65,132.62,7.60843373]
[1765557265160,0.68,132.64,132.61,7.60843373]
[1765557265492,8.80994492,132.63,132.55,0.68]
[1765557265784,83.80994492,132.61,132.56,7.5436043]
[1765557265985,92.06994492,132.61,132.57,7.60843373]
[1765557266290,92.74994492,132.61,132.57,7.60843373]
[1765557267266,92.74994492,132.61,132.57,15.15146945]
[1765557267466,92.74994492,132.61,132.59,7.60843373]
[1765557267467,8.26,132.61,132.59,7.60843373]
[1765557267678,8.94,132.61,132.58,7.60843373]
[1765557268570,16.48094676,132.61,132.58,7.60843373]
[1765557268767,16.48094676,132.61,132.57,7.60843373]
[1765557268768,75.68,132.6,132.57,7.60843373]
[1765557268990,8.94,132.61,132.58,7.60843373]
[1765557269190,0.68,132.6,132.58,7.60843373]
[1765557269488,17.03145591,132.6,132.55,0.68]
[1765557269788,158.22151099,132.6,132.55,7.60843373]
[1765557269974,0.68,132.59,132.55,7.60843373]
[1765557270174,0.68,132.59,132.56,7.60843373]
[1765557270685,0.68,132.59,132.54,7.60843373]
[1765557270686,158.80994492,132.58,132.54,7.60843373]
[1765557270901,8.26,132.57,132.53,7.60843373]
[1765557271075,8.94,132.57,132.54,7.60843373]
[1765557271391,83.22393151,132.56,132.53,7.60843373]
[1765557271978,83.22393151,132.56,132.52,0.2]
[1765557271979,0.68,132.55,132.52,0.2]
[1765557272178,150.0,132.54,132.52,0.2]
[1765557272598,8.26,132.53,132.52,0.2]
[1765557273099,17.74994492,132.53,132.52,0.2]
[1765557273599,8.26,132.53,132.52,0.2]
[1765557273777,8.26,132.53,132.52,7.80843373]
[1765557274377,8.26,132.53,132.52,0.2]
[1765557275383,8.94,132.53,132.52,0.2]
[1765557275578,8.26,132.53,132.52,0.2]
[1765557276310,8.26,132.53,132.52,16.03446451]
[1765557276609,8.26,132.53,132.52,15.35446451]
[1765557276985,8.26,132.53,132.52,7.74603078]
[1765557277182,8.26,132.53,132.52,7.80843373]
[1765557277378,8.94,132.53,132.52,0.2]
[1765557278613,8.26,132.53,132.52,0.2]
[1765557278799,8.26,132.53,132.52,15.35446451]
[1765557278995,157.54387146,132.56,132.52,16.03446451]
[1765557279309,8.26,132.56,132.54,7.60843373]
[1765557279609,8.26,132.56,132.55,7.60843373]
[1765557279792,163.7270912,132.58,132.55,7.60843373]
[1765557279994,8.94,132.57,132.55,7.60843373]
[1765557280309,83.80994492,132.56,132.52,0.2]
[1765557280510,83.28843373,132.55,132.52,0.2]
[1765557280809,13.0470912,132.53,132.52,0.2]
[1765557281014,96.3070912,132.53,132.52,0.2]
[1765557281217,105.79703612,132.53,132.52,0.2]
[1765557281594,104.5325526,132.53,132.52,0.2]
[1765557281915,90.8054614,132.53,132.52,0.2]
[1765557282088,91.4854614,132.53,132.52,0.2]
[1765557282289,83.94,132.53,132.52,0.2]
[1765557282487,91.4854614,132.53,132.52,0.2]
[1765557283312,100.29540632,132.53,132.52,0.2]
[1765557283491,108.18816319,132.53,132.52,0.2]
[1765557284198,84.09426806,132.52,132.51,0.2]
[1765557284406,8.80994492,132.48,132.43,7.60843373]
[1765557284592,0.68,132.47,132.44,7.55038689]
[1765557284793,17.74994492,132.48,132.43,15.15940975]
[1765557284991,8.80994492,132.46,132.41,0.2]
[1765557285191,8.80994492,132.44,132.41,0.2]
[1765557285513,83.26,132.43,132.41,0.2]
[1765557285708,8.26,132.43,132.41,7.80843373]
[1765557286106,8.26,132.43,132.41,0.2]
[1765557286310,83.26,132.43,132.41,0.2]
[1765557286517,83.94,132.43,132.41,0.2]
[1765557286694,0.68,132.42,132.41,0.2]
[1765557287096,22.53703612,132.42,132.41,0.2]
[1765557287298,83.26,132.43,132.41,0.2]
[1765557287711,8.80994492,132.42,132.41,0.2]
[1765557288022,17.09837865,132.42,132.41,0.2]
[1765557288199,171.3070912,132.43,132.41,0.2]
[1765557288525,21.3070912,132.43,132.41,0.2]
[1765557288704,159.48994492,132.45,132.41,8.43229699]
[1765557288705,8.26,132.44,132.41,8.43229699]
[1765557288905,8.26,132.45,132.41,8.43229699]
[1765557289104,8.26,132.45,132.42,8.28843373]
[1765557289315,83.26,132.45,132.41,7.75229699]
[1765557289519,83.26,132.45,132.41,16.04073072]
[1765557289723,103.88461987,132.47,132.44,7.60843373]
[1765557289724,163.0470912,132.47,132.44,7.60843373]
[1765557289901,0.68,132.51,132.45,7.60843373]
[1765557289902,83.28,132.49,132.45,7.60843373]
[1765557290108,8.28,132.49,132.46,7.60843373]
[1765557290409,8.28,132.49,132.48,7.60843373]
[1765557290602,8.28,132.49,132.47,7.60843373]
[1765557290822,8.28,132.49,132.47,8.31843373]
[1765557291128,8.28,132.49,132.48,7.60843373]
[1765557291329,8.28,132.49,132.47,0.71]
[1765557291505,83.28,132.49,132.46,7.60843373]
[1765557291902,8.28,132.49,132.46,7.60843373]
[1765557292116,83.98,132.49,132.45,15.15829134]
[1765557292329,75.7,132.48,132.43,8.26072678]
[1765557292639,75.7,132.48,132.43,7.55072678]
[1765557292922,75.7,132.48,132.44,7.60843373]
[1765557293131,75.7,132.48,132.44,15.15901851]
[1765557293307,75.0,132.48,132.45,8.31843373]
[1765557293719,75.0,132.48,132.41,0.2]
[1765557293720,8.28,132.49,132.47,7.60843373]
[1765557293938,8.28,132.49,132.47,8.31843373]
[1765557294106,75.0,132.5,132.48,7.60843373]
[1765557294526,8.28,132.51,132.49,7.60843373]
[1765557295130,8.28,132.51,132.5,7.60843373]
[1765557295830,8.98,132.51,132.48,7.60843373]
[1765557296031,8.98,132.51,132.48,7.54828589]
[1765557296452,8.28,132.51,132.48,7.54828589]
[1765557296830,75.0,132.55,132.5,15.15560354]
[1765557297054,8.28,132.54,132.5,15.15560354]
[1765557297354,8.98,132.54,132.5,15.15560354]
[1765557297825,8.28,132.54,132.52,7.60843373]
[1765557298027,8.28,132.54,132.53,7.60843373]
[1765557298231,158.28,132.59,132.53,7.60843373]
[1765557298426,158.98,132.59,132.54,7.60843373]
[1765557298853,158.98,132.59,132.56,7.60843373]
[1765557298854,158.28,132.59,132.56,7.60843373]
[1765557299057,0.7,132.58,132.55,7.60843373]
[1765557299348,0.7,132.58,132.5,26.41509433]
[1765557299349,83.28,132.59,132.56,7.60843373]
[1765557299558,83.28,132.59,132.51,0.99432314]
[1765557299736,150.0,132.56,132.5,7.54716981]
[1765557299940,8.28,132.57,132.54,7.60843373]
[1765557300264,8.28,132.57,132.51,0.71]
[1765557300265,8.28,132.57,132.55,7.60843373]
[1765557300429,8.28,132.57,132.51,0.71]
[1765557300638,7.21190261,132.68,132.56,15.21339016]
[1765557300639,75.0,132.64,132.56,15.21339016]
[1765557300838,7.53845846,132.66,132.63,7.60669508]
[1765557300839,75.0,132.66,132.63,7.60669508]
[1765557301031,166.01704929,132.68,132.65,7.60669508]
[1765557301335,158.48,132.68,132.66,7.60669508]
[1765557301654,83.48,132.68,132.66,7.60669508]
[1765557301860,0.2,132.68,132.67,15.85419413]
[1765557302068,0.2,132.68,132.66,12.34682459]
[1765557302668,7.73698942,132.68,132.65,12.34682459]
[1765557302851,0.2,132.68,132.65,12.34682459]
[1765557303055,158.43708853,132.68,132.61,19.56188839]
[1765557303256,75.2,132.68,132.66,12.34682459]
[1765557303460,82.73704665,132.68,132.63,7.53969832]
[1765557303779,75.0,132.63,132.58,7.54259107]
[1765557303984,75.0,132.63,132.6,12.34682459]
[1765557303985,8.26,132.63,132.6,12.34682459]
[1765557304182,8.26,132.63,132.59,0.71]
[1765557304183,8.26,132.63,132.61,12.34682459]
[1765557304355,8.26,132.63,132.59,0.71]
[1765557304554,8.26,132.63,132.61,12.34682459]
[1765557304752,21.15676951,132.67,132.59,0.71]
[1765557304753,75.2,132.68,132.62,12.34682459]
[1765557304985,83.46,132.68,132.6,13.0470912]
[1765557305286,75.0,132.66,132.62,12.34682459]
[1765557305454,75.0,132.66,132.61,12.34682459]
[1765557305655,75.7,132.66,132.61,12.34682459]
[1765557305953,8.2386355,132.65,132.61,12.34682459]
[1765557306154,82.53806747,132.66,132.62,12.34682459]
[1765557306374,83.23806747,132.66,132.62,12.34682459]
[1765557306609,83.80994492,132.64,132.59,12.34682459]
[1765557306889,83.26,132.63,132.58,19.88911331]
[1765557307061,8.26,132.63,132.62,12.34682459]
[1765557307260,104.3,132.64,132.62,12.34682459]
[1765557307701,83.26,132.66,132.63,13.05682459]
[1765557307898,8.26,132.66,132.63,19.8865226]
[1765557308179,8.26,132.66,132.61,0.71]
[1765557308397,8.80994492,132.63,132.55,0.71]
[1765557308699,158.26,132.62,132.57,12.34682459]
[1765557309001,8.26,132.62,132.59,12.34682459]
[1765557309303,8.26,132.62,132.56,26.40313819]
[1765557309503,83.26,132.66,132.61,12.34682459]
[1765557309703,8.26,132.66,132.63,12.34682459]
[1765557310003,8.26,132.66,132.64,12.34682459]
[1765557310202,0.2,132.68,132.65,13.05682459]
[1765557310505,0.2,132.68,132.66,0.71]
[1765557310677,0.2,132.68,132.66,12.34682459]
[1765557310999,0.2,132.68,132.67,12.34682459]
[1765557311182,0.2,132.68,132.67,13.05682459]
[1765557311396,40.27191497,132.82,132.67,13.05682459]
[1765557311397,150.1,132.75,132.67,13.05682459]
[1765557311713,0.1,132.75,132.73,12.34682459]
[1765557311878,0.1,132.75,132.73,7.53389997]
[1765557312274,0.7,132.74,132.71,7.53514798]
[1765557312507,0.7,132.74,132.69,12.34682459]
[1765557312679,75.0,132.73,132.69,19.8828159]
[1765557313117,75.7,132.73,132.7,7.53572982]
[1765557313400,150.7,132.73,132.69,7.53632341]
[1765557313576,150.7,132.73,132.69,19.883148]
[1765557314378,158.23422564,132.73,132.69,19.883148]
[1765557315212,158.23419202,132.73,132.69,19.883148]
[1765557315877,150.7,132.73,132.69,19.883148]
[1765557316206,75.7,132.73,132.7,12.34682459]
[1765557316502,75.0,132.73,132.71,12.34682459]
[1765557316711,75.0,132.73,132.7,12.34682459]
[1765557317614,15.7936333,132.74,132.71,13.06682459]
[1765557317615,8.26,132.74,132.71,13.06682459]
[1765557317815,8.26,132.74,132.72,12.34682459]
[1765557318114,0.1,132.75,132.73,12.34682459]
[1765557318312,0.1,132.75,132.74,19.88034877]
[1765557318516,0.1,132.75,132.74,7.53352418]
[1765557318717,75.78,132.75,132.71,19.88161766]
[1765557319120,0.68,132.74,132.7,19.88249675]
[1765557319627,0.68,132.74,132.71,7.53496001]
[1765557319917,0.68,132.74,132.7,12.34682459]
[1765557320121,75.1,132.75,132.71,13.03682459]
[1765557320294,150.82,132.75,132.71,12.34682459]
[1765557320494,158.3532312,132.75,132.71,19.88186536]
[1765557320709,158.3532312,132.75,132.66,8.24]
[1765557320710,9.52994492,132.74,132.66,8.24]
[1765557320928,150.0,132.71,132.66,19.88477082]
[1765557321231,83.26,132.71,132.67,12.34682459]
[1765557321391,83.98,132.71,132.67,12.34682459]
[1765557321911,0.72,132.7,132.66,20.57477134]
[1765557322086,0.72,132.7,132.66,7.53794675]
[1765557322293,8.25587537,132.7,132.66,19.88477134]
[1765557322709,0.72,132.69,132.66,19.88477134]
[1765557323117,0.72,132.69,132.66,7.53794675]
[1765557323447,96.85703612,132.67,132.61,0.69]
[1765557323593,75.0,132.64,132.59,12.34682459]
[1765557323792,75.0,132.64,132.59,19.8888715]
[1765557323991,0.72,132.63,132.59,19.8888715]
[1765557325049,83.2598417,132.63,132.59,7.54204691]
[1765557325236,83.2598417,132.63,132.55,19.89101602]
[1765557325237,150.0,132.6,132.55,19.89101602]
[1765557325423,75.0,132.57,132.53,12.34682459]
[1765557325617,8.26,132.58,132.55,12.34682459]
[1765557326024,8.26,132.58,132.53,8.23540571]
[1765557326025,0.72,132.57,132.53,7.54540571]
[1765557326326,0.72,132.57,132.54,7.54473456]
[1765557326530,0.72,132.57,132.53,12.34682459]
[1765557326732,0.72,132.57,132.54,7.54488205]
[1765557327031,0.72,132.57,132.53,12.34682459]
[1765557327230,83.26327851,132.57,132.53,7.54539342]
[1765557327642,0.72,132.56,132.53,7.54539342]
[1765557327855,75.72,132.56,132.51,12.34682459]
[1765557328020,75.0,132.55,132.51,7.54659832]
[1765557328221,8.26,132.54,132.52,7.54602693]
[1765557328457,8.98,132.54,132.52,7.54602693]
[1765557328630,8.26,132.54,132.53,12.34682459]
[1765557328954,8.26,132.54,132.52,19.89285152]
[1765557329323,8.26,132.54,132.51,7.54647138]
[1765557329536,8.98,132.54,132.51,7.54647138]
[1765557329949,8.26,132.54,132.51,19.89329597]
[1765557330548,75.0,132.58,132.53,12.34682459]
[1765557330873,75.72,132.58,132.55,12.34682459]
[1765557331154,75.72,132.58,132.52,0.69]
[1765557331363,8.26,132.59,132.56,12.34682459]
[1765557331575,8.26,132.59,132.57,12.34682459]
[1765557331768,8.98,132.62,132.58,12.34682459]
[1765557331988,8.26,132.62,132.6,12.34682459]
[1765557332280,8.26,132.62,132.61,12.34682459]
[1765557332457,0.72,132.64,132.6,19.88785161]
[1765557332782,83.26,132.65,132.63,12.34682459]
[1765557333179,83.26,132.65,132.62,12.34682459]
[1765557333561,8.26,132.66,132.61,27.08311174]
[1765557333875,8.26,132.66,132.64,12.34682459]
[1765557334278,8.26,132.66,132.62,0.69]
[1765557334579,8.26,132.66,132.64,19.88574937]
[1765557336267,8.26,132.66,132.64,7.53892478]
[1765557336471,75.0,132.71,132.65,13.03682459]
[1765557336669,8.26,132.71,132.69,12.34682459]
[1765557337079,8.98,132.72,132.69,12.34682459]
[1765557337363,8.26,132.72,132.71,12.34682459]
[1765557337593,8.26,132.72,132.67,18.84321068]
[1765557337594,8.98,132.72,132.67,18.84321068]
[1765557337773,8.98,132.72,132.67,12.34682459]
[1765557337774,75.72,132.71,132.67,12.34682459]
[1765557337974,75.72,132.71,132.66,19.88444545]
[1765557338282,75.72,132.71,132.67,12.34682459]
[1765557338594,75.72,132.71,132.67,19.88421841]
[1765557338792,75.72,132.71,132.67,19.88428135]
[1765557338969,75.72,132.7,132.65,7.53817738]
[1765557339169,75.72,132.7,132.66,12.35301681]
[1765557339518,163.07301681,132.69,132.61,18.85180848]
[1765557339827,15.79693096,132.68,132.63,12.35301681]
[1765557340011,8.98,132.68,132.64,12.35301681]
[1765557340201,8.26,132.68,132.66,12.35301681]
[1765557340391,8.26,132.68,132.65,12.35301681]
[1765557340601,0.72,132.67,132.65,12.35301681]
[1765557341716,8.26,132.68,132.65,12.35301681]
[1765557342017,8.98,132.68,132.65,19.89158849]
[1765557342902,163.07301681,132.67,132.61,12.35301681]
[1765557343101,163.07301681,132.67,132.61,19.89377523]
[1765557343326,0.72,132.66,132.61,7.54075842]
[1765557343517,0.72,132.66,132.62,19.89282752]
[1765557343838,0.72,132.66,132.63,12.35301681]
[1765557344534,0.72,132.66,132.62,7.53981071]
[1765557344535,0.72,132.66,132.62,12.35301681]
[1765557344706,0.72,132.66,132.6,19.54271074]
[1765557344707,8.80994492,132.64,132.54,37.72421948]
[1765557344910,82.54050215,132.62,132.58,12.35301681]
[1765557345312,0.72,132.61,132.58,12.35301681]
[1765557345620,75.0,132.6,132.56,12.35301681]
[1765557345937,0.72,132.61,132.59,12.35301681]
[1765557346448,0.72,132.61,132.58,12.35301681]
[1765557346652,75.0,132.6,132.52,34.65110774]
[1765557346989,16.52204691,132.59,132.55,12.35301681]
[1765557347117,75.0,132.58,132.55,12.35301681]
[1765557347316,75.0,132.58,132.54,12.35301681]
[1765557347317,75.72,132.58,132.54,12.35301681]
[1765557347512,0.72,132.57,132.55,19.89729665]
[1765557347713,90.80204691,132.59,132.56,12.35301681]
[1765557347714,8.26,132.59,132.56,12.35301681]
[1765557347931,8.26,132.62,132.58,12.35301681]
[1765557348131,8.26,132.62,132.61,12.35301681]
[1765557348339,8.26,132.62,132.57,13.04301681]
[1765557348613,8.26,132.62,132.58,0.69]
[1765557348839,8.98,132.62,132.59,19.89491135]
[1765557349929,8.98,132.62,132.6,12.35301681]
[1765557350617,8.26,132.62,132.59,12.35301681]
[1765557350829,0.66,132.61,132.59,19.89492934]
[1765557351240,8.26,132.62,132.6,12.35301681]
[1765557351454,8.26,132.62,132.59,7.54191253]
[1765557351643,8.26,132.62,132.6,12.35301681]
[1765557351843,8.26,132.62,132.61,12.35301681]
[1765557352064,0.66,132.66,132.61,12.35301681]
[1765557352227,8.19808689,132.66,132.63,12.35301681]
[1765557352432,8.19808689,132.66,132.62,12.35301681]
[1765557352633,0.66,132.65,132.59,26.3970298]
[1765557352936,8.19865008,132.65,132.62,12.35301681]
[1765557353430,0.66,132.64,132.62,12.35301681]
[1765557353632,167.06994492,132.63,132.57,7.54315528]
[1765557353936,0.66,132.62,132.59,12.35301681]
[1765557354248,167.06994492,132.63,132.6,12.35301681]
[1765557354249,158.26,132.63,132.6,12.35301681]
[1765557354435,0.66,132.62,132.6,12.35301681]
[1765557355050,0.66,132.62,132.6,19.89443235]
[1765557355248,83.26,132.63,132.61,12.35301681]
[1765557355555,83.92,132.63,132.61,12.35301681]
[1765557355731,8.92,132.63,132.61,12.35301681]
[1765557355933,0.66,132.62,132.6,12.35301681]
[1765557356153,16.45980994,132.63,132.6,12.35301681]
[1765557356364,8.26,132.63,132.61,12.35301681]
[1765557356665,18.84421429,132.67,132.62,12.35301681]
[1765557356666,13.7070912,132.66,132.62,12.35301681]
[1765557356863,13.7070912,132.66,132.64,12.35301681]
[1765557357166,150.66,132.69,132.65,12.35301681]
[1765557357333,158.19643258,132.69,132.66,12.35301681]
[1765557357539,150.66,132.69,132.66,12.35301681]
[1765557357733,150.66,132.69,132.67,12.35301681]
[1765557358059,75.66,132.69,132.67,12.35301681]
[1765557358258,0.66,132.69,132.67,12.35301681]
[1765557358757,0.66,132.69,132.65,26.38522426]
[1765557358961,178.84248746,132.71,132.67,12.35301681]
[1765557359166,158.92,132.71,132.68,12.35301681]
[1765557359354,158.92,132.71,132.68,19.88989765]
[1765557359765,0.66,132.7,132.65,7.53855067]
[1765557359956,150.0,132.69,132.63,27.0887885]
[1765557360271,8.92,132.7,132.67,12.35301681]
[1765557360559,8.92,132.7,132.66,7.53787588]
[1765557360862,0.66,132.69,132.67,19.89049077]
[1765557361075,0.66,132.69,132.63,27.08877458]
[1765557361278,7.53693096,132.68,132.66,12.35301681]
[1765557361478,158.19658581,132.69,132.66,12.35301681]
[1765557361765,8.26,132.7,132.68,12.35301681]
[1765557362064,8.92,132.7,132.66,12.35301681]
[1765557362266,8.92,132.7,132.67,12.35301681]
[1765557362452,8.26,132.7,132.69,12.35301681]
[1765557362762,8.26,132.7,132.61,12.35301681]
[1765557362763,75.0,132.65,132.61,12.35301681]
[1765557362965,75.0,132.65,132.55,45.96118318]
[1765557362966,75.0,132.65,132.6,12.35301681]
[1765557363168,8.19937361,132.64,132.6,19.89447186]
[1765557363376,8.19937361,132.64,132.6,7.54145505]
[1765557363544,0.66,132.63,132.56,18.85870829]
[1765557363745,0.66,132.63,132.57,12.35301681]
[1765557363746,83.26,132.62,132.57,12.35301681]
[1765557363944,83.26,132.62,132.58,7.54223519]
[1765557364266,8.26,132.62,132.56,0.69]
[1765557364490,83.80994492,132.66,132.61,7.60961632]
[1765557364639,75.66,132.66,132.63,7.60961632]
[1765557364843,75.66,132.66,132.64,7.60961632]
[1765557365064,75.0,132.7,132.61,8.93]
[1765557365266,75.0,132.66,132.62,7.54034082]
[1765557365446,75.0,132.66,132.58,13.0470912]
[1765557365447,0.66,132.65,132.6,7.5413239]
[1765557365652,0.66,132.65,132.58,7.60961632]
[1765557365653,75.0,132.63,132.58,7.60961632]
[1765557365847,8.26,132.64,132.61,7.60961632]
[1765557366055,8.92,132.64,132.61,7.60961632]
[1765557366252,8.92,132.64,132.61,15.15050913]
[1765557366452,8.92,132.64,132.61,7.54089281]
[1765557367140,8.92,132.64,132.61,7.60961632]
[1765557368171,75.66,132.63,132.59,7.60961632]
[1765557368477,8.92,132.64,132.6,15.15101848]
[1765557368647,8.92,132.64,132.61,7.60961632]
[1765557368968,15.79935898,132.64,132.6,15.15101848]
[1765557369149,7.54034082,132.62,132.58,15.15205684]
[1765557369671,0.66,132.61,132.58,15.15205684]
[1765557369873,75.66,132.61,132.53,21.9770912]
[1765557370182,8.26,132.6,132.56,7.60961632]
[1765557370547,8.92,132.6,132.56,7.60961632]
[1765557371169,8.92,132.6,132.57,7.54316079]
[1765557371479,150.66,132.59,132.54,7.60961632]
[1765557371646,0.66,132.58,132.54,7.60961632]
[1765557371961,150.66,132.59,132.55,15.15357725]
[1765557372164,75.66,132.59,132.56,7.54368832]
[1765557372351,0.66,132.58,132.55,15.15388758]
[1765557372549,0.66,132.58,132.55,7.54427126]
[1765557372977,0.66,132.58,132.53,7.60961632]
[1765557373175,75.0,132.57,132.53,15.15496713]
[1765557373374,0.66,132.58,132.55,7.60961632]
[1765557373576,0.66,132.58,132.54,7.60961632]
[1765557373761,83.2027665,132.58,132.54,7.60961632]
[1765557374079,75.0,132.57,132.53,15.15496713]
[1765557374254,158.92,132.6,132.56,7.60961632]
[1765557374970,83.92,132.6,132.57,7.60961632]
[1765557375173,8.26,132.6,132.59,15.15166323]
[1765557375476,157.54045171,132.62,132.58,15.15211223]
[1765557375645,158.20045171,132.62,132.58,15.15211223]
[1765557375846,150.66,132.62,132.58,15.15211223]
[1765557376051,150.0,132.62,132.58,15.15211223]
[1765557376267,0.66,132.61,132.58,7.54249591]
[1765557376570,75.0,132.62,132.6,7.60842897]
[1765557376771,8.26,132.63,132.61,7.60842897]
[1765557377021,8.92,132.63,132.61,7.60842897]
[1765557377278,83.92,132.66,132.62,7.60842897]
[1765557377571,83.92,132.66,132.63,7.60842897]
[1765557377950,83.26,132.66,132.65,7.60842897]
[1765557378147,8.26,132.66,132.65,7.60842897]
[1765557378369,8.26,132.66,132.61,0.69]
[1765557378560,8.26,132.66,132.64,7.60842897]
[1765557379080,8.92,132.66,132.64,7.60842897]